bitfinex/quotes_BTCUSD_20211001
["timestamp","ask_amount","ask_price","bid_price","bid_amount"]
[1633124921884,0.207556,48177.0,48172.0,0.00951835]
[1633124922484,0.311339,48175.0,48172.0,0.00951835]
[1633124922885,0.311339,48175.0,48172.0,0.00451835]
[1633124924288,0.03714428,48174.0,48172.0,0.00451835]
[1633124924485,0.03714428,48174.0,48172.0,0.01251835]
[1633124924686,0.311355,48173.0,48172.0,0.11251835]
[1633124926488,0.340355,48173.0,48172.0,0.12351835]
[1633124927089,0.340355,48173.0,48172.0,0.11851835]
[1633124927888,0.340355,48173.0,48172.0,0.09951835]
[1633124927889,0.311355,48173.0,48172.0,0.09951835]
[1633124928489,0.311355,48173.0,48172.0,0.11851835]
[1633124928490,0.340355,48173.0,48172.0,0.11851835]
[1633124929889,0.3484957,48173.0,48172.0,0.09951835]
[1633124930492,0.3824957,48173.0,48172.0,0.11051835]
[1633124931494,0.3824957,48173.0,48172.0,0.09946652]
[1633124931689,0.034,48173.0,48172.0,0.09946652]
[1633124931889,0.207556,48177.0,48172.0,0.08846652]
[1633124932489,0.243556,48177.0,48172.0,0.08846652]
[1633124932690,0.311325,48176.0,48172.0,0.08846652]
[1633124934696,0.346325,48176.0,48172.0,0.09146652]
[1633124935292,0.03714624,48175.0,48172.0,0.09146652]
[1633124936495,0.03714624,48175.0,48172.0,0.08846652]
[1633124936694,0.07214624,48175.0,48172.0,0.09546652]
[1633124937295,0.035,48175.0,48172.0,0.09546652]
[1633124937893,0.207544,48183.0,48172.0,0.08974941]
[1633124938693,0.242544,48183.0,48172.0,0.08974941]
[1633124939696,0.311318,48178.0,48172.0,0.08974941]
[1633124940698,0.349318,48178.0,48172.0,0.08974941]
[1633124940897,0.03714995,48177.0,48172.0,0.08974941]
[1633124942501,0.34847495,48177.0,48172.0,0.08974941]
[1633124942699,0.352325,48177.0,48172.0,0.08974941]
[1633124942896,0.311325,48177.0,48172.0,0.08974941]
[1633124943359,0.311325,48177.0,48176.0,0.00125049]
[1633124943496,0.622628,48183.0,48176.0,0.00125049]
[1633124943697,0.311321,48178.0,48176.0,0.00125049]
[1633124944701,0.349321,48178.0,48172.0,0.08846652]
[1633124945901,0.311321,48178.0,48172.0,0.08846652]
[1633124946102,0.311321,48178.0,48172.0,0.08346652]
[1633124946367,0.03715002,48177.0,48172.0,0.08346652]
[1633124948103,0.33347602,48177.0,48172.0,0.08346652]
[1633124948303,0.311326,48177.0,48172.0,0.08346652]
[1633124948706,0.341326,48177.0,48172.0,0.09446652]
[1633124949908,0.311326,48177.0,48172.0,0.08346652]
[1633124950708,0.341326,48177.0,48172.0,0.09446652]
[1633124951909,0.02964827,48176.0,48172.0,0.09446652]
[1633124952110,0.311332,48175.0,48172.0,0.08346652]
[1633124952712,0.340332,48175.0,48172.0,0.10146652]
[1633124953911,0.340332,48175.0,48173.0,0.00801713]
[1633124954110,0.311332,48175.0,48173.0,0.00801713]
[1633124954311,0.207557,48179.0,48173.0,0.00801713]
[1633124954716,0.008,48175.0,48173.0,0.03301713]
[1633124956113,0.311322,48177.0,48173.0,0.00801713]
[1633124956715,0.344322,48177.0,48173.0,0.01801713]
[1633124957315,0.02965016,48176.0,48173.0,0.01]
[1633124957916,0.34098516,48176.0,48173.0,0.01]
[1633124958119,0.34098516,48176.0,48172.0,0.08346652]
[1633124958715,0.36398516,48176.0,48172.0,0.09746652]
[1633124959316,0.329335,48176.0,48173.0,0.00801492]
[1633124959918,0.306335,48176.0,48173.0,0.00801492]
[1633124960624,0.338335,48176.0,48173.0,0.02501492]
[1633124962027,0.306335,48176.0,48173.0,0.00801492]
[1633124962622,0.338335,48176.0,48173.0,0.02601492]
[1633124962822,0.0296484,48175.0,48173.0,0.018]
[1633124964020,0.0296484,48175.0,48172.0,0.08346652]
[1633124964225,0.311329,48174.0,48172.0,0.08346652]
[1633124964621,0.311329,48174.0,48172.0,0.10946652]
[1633124965222,0.311329,48174.0,48173.0,0.00801935]
[1633124966427,0.31134,48176.0,48173.0,0.00801935]
[1633124966624,0.025,48174.0,48173.0,0.03601935]
[1633124968028,0.025,48174.0,48173.0,0.00801935]
[1633124968227,0.311341,48175.0,48172.0,0.08346652]
[1633124968431,0.02964482,48174.0,48172.0,0.08346652]
[1633124968628,0.05464482,48174.0,48173.0,0.028]
[1633124970029,0.02964482,48174.0,48172.0,0.08346652]
[1633124970485,0.41513,48178.0,48172.0,0.08346652]
[1633124970688,0.026,48174.0,48173.0,0.00801935]
[1633124970889,0.026,48174.0,48173.0,0.00854945]
[1633124971489,0.026,48174.0,48172.0,0.10801438]
[1633124971886,0.026,48174.0,48173.0,0.0005301]
[1633124972086,0.207557,48179.0,48172.0,0.08001438]
[1633124972286,0.207557,48179.0,48172.0,0.07948428]
[1633124972488,0.311342,48175.0,48172.0,0.07948428]
[1633124972689,0.311342,48175.0,48172.0,0.08048428]
[1633124973893,0.03365457,48174.0,48172.0,0.08048428]
[1633124974090,0.03365457,48174.0,48172.0,0.07948428]
[1633124974490,0.03365457,48174.0,48173.0,0.0005301]
[1633124974690,0.05965457,48174.0,48173.0,0.0005301]
[1633124976090,0.207557,48179.0,48173.0,0.00479532]
[1633124976492,0.207557,48179.0,48174.0,0.0005301]
[1633124976695,0.311334,48175.0,48174.0,0.0005301]
[1633124976893,0.311334,48175.0,48173.0,0.00479532]
[1633124977096,0.311334,48175.0,48173.0,0.00426522]
[1633124978095,0.311334,48175.0,48172.0,0.07263387]
[1633124978697,0.339334,48175.0,48172.0,0.07263387]
[1633124979296,0.03578724,48174.0,48172.0,0.07263387]
[1633124979498,0.34712824,48174.0,48172.0,0.07263387]
[1633124980498,0.34712824,48174.0,48172.0,0.07316397]
[1633124980697,0.37412824,48174.0,48172.0,0.07316397]
[1633124981299,0.37412824,48174.0,48172.0,0.07263387]
[1633124981502,0.338341,48174.0,48172.0,0.07263387]
[1633124982100,0.311341,48174.0,48172.0,0.07316397]
[1633124982499,0.311341,48174.0,48172.0,0.07263387]
[1633124982700,0.338341,48174.0,48172.0,0.07263387]
[1633124984104,0.311341,48174.0,48172.0,0.07263387]
[1633124984302,0.207557,48179.0,48172.0,0.07263387]
[1633124984701,0.397,48174.0,48173.0,0.0005301]
[1633124984902,0.027,48174.0,48172.0,0.07263387]
[1633124985301,0.027,48174.0,48172.0,0.07316397]
[1633124985701,0.027,48174.0,48173.0,0.0005301]
[1633124985902,0.027,48174.0,48172.0,0.07263387]
[1633124986102,0.0357946,48178.0,48172.0,0.07263387]
[1633124986503,0.0357946,48178.0,48173.0,0.0005301]
[1633124986903,0.0667946,48178.0,48172.0,0.07263387]
[1633124987103,0.031,48178.0,48172.0,0.07263387]
[1633124987704,0.311325,48176.0,48172.0,0.07263387]
[1633124988503,0.311325,48176.0,48173.0,0.0005301]
[1633124988905,0.338325,48176.0,48173.0,0.0005301]
[1633124989904,0.33714857,48176.0,48173.0,0.0005301]
[1633124990104,0.31014857,48176.0,48173.0,0.0005301]
[1633124990306,0.03579103,48175.0,48173.0,0.0005301]
[1633124990705,0.03579103,48175.0,48173.0,0.21816199]
[1633124990906,0.05979103,48175.0,48173.0,0.0285301]
[1633124991110,0.05979103,48175.0,48174.0,0.0005301]
[1633124991506,0.05979103,48175.0,48173.0,0.0285301]
[1633124991910,0.05979103,48175.0,48174.0,0.0005301]
[1633124992106,0.03579103,48175.0,48174.0,0.0005301]
[1633124992306,0.03579103,48175.0,48173.0,0.0005301]
[1633124992507,0.31014857,48176.0,48173.0,0.0005301]
[1633124992910,0.024,48175.0,48173.0,0.0285301]
[1633124993309,0.024,48175.0,48173.0,0.028]
[1633124994108,0.024,48175.0,48173.0,0.0285301]
[1633124994308,0.31014857,48176.0,48172.0,0.07263387]
[1633124994908,0.35,48175.0,48172.0,0.09516397]
[1633124995111,0.33414857,48176.0,48172.0,0.09516397]
[1633124995909,0.03578927,48175.0,48172.0,0.09516397]
[1633124996310,0.03578927,48175.0,48172.0,0.06816397]
[1633124996912,0.05978927,48175.0,48172.0,0.09716397]
[1633124998111,0.03578927,48175.0,48172.0,0.06816397]
[1633124998915,0.05978927,48175.0,48172.0,0.09716397]
[1633124999516,0.37112527,48175.0,48172.0,0.09716397]
[1633124999717,0.0005301,48174.0,48172.0,0.09716397]
[1633124999917,0.05978927,48175.0,48172.0,0.09716397]
[1633125000114,0.03578927,48175.0,48172.0,0.06816397]
[1633125000715,0.03631937,48175.0,48172.0,0.06816397]
[1633125000915,0.06731937,48175.0,48172.0,0.06816397]
[1633125001116,0.06678927,48175.0,48172.0,0.06816397]
[1633125001517,0.06678927,48175.0,48171.0,0.01]
[1633125001716,0.37812227,48175.0,48171.0,0.01]
[1633125002118,0.34765237,48175.0,48171.0,0.01]
[1633125002320,0.34712227,48175.0,48171.0,0.01]
[1633125002918,0.37712227,48175.0,48171.0,0.01]
[1633125003120,0.3118741,48174.0,48171.0,0.01]
[1633125003518,0.0005301,48173.0,48171.0,0.01]
[1633125004318,0.0005301,48174.0,48171.0,0.01]
[1633125004921,0.0325301,48174.0,48171.0,0.01]
[1633125005723,0.311351,48173.0,48171.0,0.01]
[1633125006520,0.3118811,48173.0,48171.0,0.01]
[1633125006926,0.342351,48173.0,48171.0,0.01]
[1633125007524,0.031,48173.0,48171.0,0.01]
[1633125008119,0.03578927,48175.0,48171.0,0.01]
[1633125008727,0.34711927,48175.0,48171.0,0.01]
[1633125008921,0.37811927,48175.0,48171.0,0.01]
[1633125009719,0.00073512,48173.0,48171.0,0.01]
[1633125010924,0.03073512,48173.0,48171.0,0.01]
[1633125012126,0.00073512,48173.0,48172.0,0.00121621]
[1633125012924,0.02973512,48173.0,48172.0,0.00121621]
[1633125014323,0.00073512,48173.0,48172.0,0.00121621]
[1633125014924,0.03073512,48173.0,48172.0,0.00121621]
[1633125016525,0.00073512,48173.0,48172.0,0.00121621]
[1633125016927,0.02973512,48173.0,48172.0,0.00121621]
[1633125018128,0.00073512,48173.0,48172.0,0.00121621]
[1633125018935,0.02873512,48173.0,48172.0,0.00121621]
[1633125020931,0.05473512,48173.0,48172.0,0.02921621]
[1633125021402,0.02673512,48173.0,48172.0,0.00121621]
[1633125021531,0.00073512,48173.0,48172.0,0.00121621]
[1633125022934,0.02373512,48173.0,48172.0,0.03121621]
[1633125024133,0.00073512,48173.0,48172.0,0.00121621]
[1633125024933,0.02373512,48173.0,48172.0,0.03121621]
[1633125026133,0.00073512,48173.0,48172.0,0.00121621]
[1633125026734,0.0365193,48173.0,48172.0,0.00121621]
[1633125026932,0.0625193,48173.0,48172.0,0.02921621]
[1633125028535,0.0365193,48173.0,48171.0,0.00900001]
[1633125028936,0.06178418,48173.0,48172.0,0.028]
[1633125029136,0.0625193,48173.0,48172.0,0.028]
[1633125030138,0.3738633,48173.0,48171.0,0.00900001]
[1633125030400,0.3478633,48173.0,48171.0,0.00900001]
[1633125030943,0.3728633,48173.0,48171.0,0.028]
[1633125031142,0.3728633,48173.0,48171.0,0.128]
[1633125032143,0.33707912,48173.0,48171.0,0.128]
[1633125032344,0.215112,48172.0,48171.0,0.1]
[1633125032943,0.241112,48172.0,48171.0,0.127]
[1633125034546,0.215112,48172.0,48171.0,0.1]
[1633125034748,0.00073512,48172.0,48171.0,0.1]
[1633125034947,0.02673512,48172.0,48171.0,0.128]
[1633125036347,0.00073512,48172.0,48171.0,0.1]
[1633125036946,0.02373512,48172.0,48171.0,0.13]
[1633125037748,0.05951579,48172.0,48171.0,0.13]
[1633125038349,0.03651579,48172.0,48171.0,0.1]
[1633125038950,0.05951579,48172.0,48171.0,0.13]
[1633125040551,0.03651579,48172.0,48171.0,0.1]
[1633125040952,0.05951579,48172.0,48171.0,0.129]
[1633125042351,0.03651579,48172.0,48171.0,0.1]
[1633125042851,0.00073512,48172.0,48171.0,0.1]
[1633125043052,0.02473512,48172.0,48171.0,0.129]
[1633125043252,0.06051586,48172.0,48171.0,0.129]
[1633125044253,0.03651586,48172.0,48171.0,0.1]
[1633125045053,0.05951586,48172.0,48171.0,0.129]
[1633125046256,0.03651586,48172.0,48171.0,0.1]
[1633125047058,0.06251586,48172.0,48171.0,0.129]
[1633125048256,0.00073512,48172.0,48171.0,0.1]
[1633125048656,0.03651593,48172.0,48171.0,0.1]
[1633125049059,0.05951593,48172.0,48171.0,0.13]
[1633125050259,0.34651593,48172.0,48171.0,0.06099999]
[1633125050459,0.03651593,48172.0,48171.0,0.06099999]
[1633125051058,0.05851593,48172.0,48171.0,0.09099999]
[1633125052060,0.42851593,48172.0,48171.0,0.0819]
[1633125052261,0.05851593,48172.0,48171.0,0.0819]
[1633125052862,0.05851593,48172.0,48171.0,0.0519]
[1633125053061,0.05951593,48172.0,48171.0,0.0819]
[1633125053861,0.02373512,48172.0,48171.0,0.0819]
[1633125054266,0.036516,48172.0,48171.0,0.0519]
[1633125055135,0.036516,48172.0,48171.0,0.0819]
[1633125056334,0.036516,48172.0,48171.0,0.0519]
[1633125056939,0.057516,48172.0,48171.0,0.0819]
[1633125058340,0.036516,48172.0,48171.0,0.0519]
[1633125058940,0.057516,48172.0,48171.0,0.0819]
[1633125059444,0.02173512,48172.0,48171.0,0.0819]
[1633125059841,0.05751606,48172.0,48171.0,0.0819]
[1633125060042,0.05751606,48172.0,48171.0,0.06754758]
[1633125060243,0.03651606,48172.0,48171.0,0.03754758]
[1633125061041,0.03651606,48172.0,48171.0,0.06754758]
[1633125062240,0.03651606,48172.0,48171.0,0.03754758]
[1633125063145,0.06251606,48172.0,48171.0,0.06654758]
[1633125064143,0.06251606,48172.0,48171.0,0.06410047]
[1633125064342,0.03651606,48172.0,48171.0,0.03510047]
[1633125064941,0.00073512,48172.0,48171.0,0.03510047]
[1633125065143,0.00073512,48172.0,48171.0,0.06410047]
[1633125065144,0.06251613,48172.0,48171.0,0.06410047]
[1633125066343,0.03651613,48172.0,48171.0,0.03510047]
[1633125067147,0.06251613,48172.0,48171.0,0.06410047]
[1633125068346,0.03651613,48172.0,48171.0,0.03510047]
[1633125069145,0.06251613,48172.0,48171.0,0.06410047]
[1633125069545,0.06251613,48172.0,48171.0,0.06536534]
[1633125070345,0.00073512,48172.0,48171.0,0.03636534]
[1633125070744,0.0365162,48172.0,48171.0,0.03636534]
[1633125071145,0.0625162,48172.0,48171.0,0.06536534]
[1633125071750,0.0625162,48172.0,48171.0,0.06410047]
[1633125072349,0.0365162,48172.0,48171.0,0.03510047]
[1633125073147,0.0365162,48172.0,48171.0,0.06410047]
[1633125073148,0.0625162,48172.0,48171.0,0.06410047]
[1633125074751,0.0365162,48172.0,48171.0,0.03510047]
[1633125075150,0.0625162,48172.0,48171.0,0.06210047]
[1633125075950,0.02673512,48172.0,48171.0,0.06210047]
[1633125076150,0.06251627,48172.0,48171.0,0.06210047]
[1633125076349,0.03651627,48172.0,48171.0,0.03510047]
[1633125077153,0.06251627,48172.0,48171.0,0.06210047]
[1633125078352,0.03651627,48172.0,48171.0,0.03510047]
[1633125078950,0.0343974,48172.0,48171.0,0.03510047]
[1633125079150,0.0603974,48172.0,48171.0,0.06110047]
[1633125079752,0.3717404,48172.0,48171.0,0.06110047]
[1633125080353,0.3457404,48172.0,48171.0,0.03510047]
[1633125081055,0.3717404,48172.0,48171.0,0.06210047]
[1633125081454,0.337343,48172.0,48171.0,0.06636587]
[1633125081855,0.37243234,48172.0,48171.0,0.06636587]
[1633125082457,0.34643234,48172.0,48171.0,0.03936587]
[1633125083058,0.37243234,48172.0,48171.0,0.06536587]
[1633125084558,0.34643234,48172.0,48171.0,0.03936587]
[1633125085162,0.37243234,48172.0,48171.0,0.06636587]
[1633125086560,0.34643234,48172.0,48171.0,0.03936587]
[1633125086960,0.311343,48172.0,48171.0,0.03936587]
[1633125087162,0.337343,48172.0,48171.0,0.06110047]
[1633125087428,0.057343,48172.0,48171.0,0.06110047]
[1633125087562,0.026,48172.0,48171.0,0.06110047]
[1633125087962,0.696,48172.0,48171.0,0.06078862]
[1633125088165,0.241112,48172.0,48171.0,0.06078862]
[1633125088363,0.586,48172.0,48171.0,0.02948272]
[1633125088564,0.07748988,48175.0,48171.0,0.00348272]
[1633125088763,0.38882688,48175.0,48171.0,0.00348272]
[1633125089163,0.42182688,48175.0,48171.0,0.02448272]
[1633125090162,0.344337,48175.0,48171.0,0.00308637]
[1633125090367,0.311337,48175.0,48170.0,0.00900001]
[1633125091162,0.344337,48175.0,48170.0,0.02900001]
[1633125091562,0.0993095,48173.0,48170.0,0.02900001]
[1633125092162,0.0993095,48173.0,48170.0,0.02610001]
[1633125092366,0.0993095,48173.0,48171.0,0.0042654]
[1633125092563,0.03508947,48172.0,48171.0,0.0042654]
[1633125093164,0.06008947,48172.0,48171.0,0.0312654]
[1633125094364,0.03508947,48172.0,48171.0,0.0042654]
[1633125095164,0.06008947,48172.0,48171.0,0.0312654]
[1633125096464,0.03508947,48172.0,48171.0,0.0042654]
[1633125097064,0.03508947,48172.0,48171.0,0.0322654]
[1633125097264,0.06008947,48172.0,48171.0,0.0322654]
[1633125097865,0.06008947,48172.0,48171.0,0.028]
[1633125098470,0.03508947,48172.0,48170.0,0.10610001]
[1633125098768,0.311361,48171.0,48170.0,0.10610001]
[1633125099167,0.311361,48171.0,48170.0,0.13410001]
[1633125099970,0.28370675,48171.0,48170.0,0.13410001]
[1633125100567,0.28370675,48171.0,48170.0,0.10610001]
[1633125101166,0.28370675,48171.0,48170.0,0.13510001]
[1633125101167,0.30770675,48171.0,48170.0,0.13510001]
[1633125102568,0.28370675,48171.0,48170.0,0.10610001]
[1633125103168,0.30870675,48171.0,48170.0,0.13510001]
[1633125103569,0.30870675,48171.0,48170.0,0.1393655]
[1633125104569,0.28370675,48171.0,48170.0,0.1103655]
[1633125105171,0.30770675,48171.0,48170.0,0.1393655]
[1633125106574,0.28370675,48171.0,48170.0,0.1103655]
[1633125106975,0.207566,48176.0,48170.0,0.1103655]
[1633125107176,0.207566,48176.0,48171.0,0.21330391]
[1633125107574,0.207566,48176.0,48171.0,0.21334676]
[1633125108437,0.207566,48176.0,48171.0,0.2126248]
[1633125108578,0.207566,48176.0,48170.0,0.1103655]
[1633125108776,0.311345,48175.0,48170.0,0.1103655]
[1633125108978,0.34644197,48175.0,48172.0,0.00426522]
[1633125109376,0.08366034,48173.0,48172.0,0.00426522]
[1633125109578,0.34644197,48175.0,48172.0,0.00426522]
[1633125109978,0.66,48174.0,48170.0,0.1210489]
[1633125110177,0.34644197,48175.0,48170.0,0.1210489]
[1633125111180,0.09856053,48172.0,48170.0,0.1210489]
[1633125111450,0.09856053,48172.0,48170.0,0.1460489]
[1633125112180,0.09856053,48172.0,48170.0,0.0910489]
[1633125112581,0.661373,48171.0,48170.0,0.0910489]
[1633125112782,0.311373,48171.0,48170.0,0.0910489]
[1633125113182,0.327373,48171.0,48170.0,0.1230489]
[1633125113787,0.327373,48171.0,48170.0,0.032]
[1633125114445,0.36459171,48171.0,48170.0,0.032]
[1633125114783,0.34859171,48171.0,48165.0,0.08440956]
[1633125114985,0.34859171,48171.0,48163.0,0.9129]
[1633125115385,0.37259171,48171.0,48170.0,0.027]
[1633125116587,0.34859171,48171.0,48163.0,0.9129]
[1633125116785,0.43318278,48171.0,48163.0,0.0744326]
[1633125117186,0.34859171,48171.0,48163.0,0.0744326]
[1633125117459,0.37159171,48171.0,48164.0,0.215112]
[1633125118187,0.06021871,48171.0,48164.0,0.215112]
[1633125118386,0.06021871,48171.0,48164.0,0.4283393]
[1633125118590,0.03721871,48171.0,48164.0,0.4283393]
[1633125119388,0.03721871,48171.0,48164.0,0.4593393]
[1633125122090,0.14856471,48172.0,48164.0,0.4593393]
[1633125122891,0.14856471,48172.0,48164.0,0.4903393]
[1633125123090,0.14856471,48172.0,48164.0,0.4593393]
[1633125123893,0.00126209,48180.0,48168.0,0.2232]
[1633125124097,0.06016471,48180.0,48178.0,0.00121392]
[1633125124294,0.41693465,48188.0,48178.0,0.00121392]
[1633125124295,0.06016391,48181.0,48178.0,0.00121392]
[1633125124495,0.06016297,48182.0,48178.0,0.00121392]
[1633125125296,0.311307,48180.0,48178.0,0.01521392]
[1633125125498,0.311307,48180.0,48179.0,0.0190147]
[1633125126698,0.341307,48180.0,48179.0,0.0330147]
[1633125127498,0.55766732,48180.0,48179.0,0.0330147]
[1633125127897,0.245119,48180.0,48179.0,0.0330147]
[1633125128096,0.215119,48180.0,48179.0,0.0190147]
[1633125128698,0.2156491,48180.0,48179.0,0.0190147]
[1633125128898,0.2506491,48180.0,48179.0,0.0220147]
[1633125129098,0.561437,48180.0,48179.0,0.0220147]
[1633125129566,0.5619671,48180.0,48179.0,0.0220147]
[1633125129768,0.561437,48180.0,48179.0,0.0220147]
[1633125130164,0.526437,48180.0,48179.0,0.0190147]
[1633125130568,0.215119,48180.0,48179.0,0.0190147]
[1633125130768,0.251119,48180.0,48179.0,0.0210147]
[1633125130965,0.27029146,48180.0,48179.0,0.002]
[1633125132166,0.90429146,48180.0,48170.0,0.00121275]
[1633125132368,0.68864236,48180.0,48170.0,0.00121275]
[1633125132577,0.89619736,48180.0,48169.0,0.28436672]
[1633125132776,0.89619736,48180.0,48171.0,0.00123757]
[1633125132777,0.04564236,48180.0,48171.0,0.00123757]
[1633125133178,0.35694636,48180.0,48171.0,0.00123757]
[1633125133376,0.35694636,48180.0,48170.0,0.025]
[1633125133979,0.56450236,48180.0,48170.0,0.025]
[1633125134178,0.53750236,48180.0,48169.0,0.28436672]
[1633125134379,0.22619836,48180.0,48169.0,0.28436672]
[1633125134780,0.25319836,48180.0,48169.0,0.31036672]
[1633125134978,0.0005301,48179.0,48169.0,0.31036672]
[1633125135179,0.25231498,48180.0,48169.0,0.31036672]
[1633125135381,0.31134,48175.0,48169.0,0.31036672]
[1633125135579,0.31134,48175.0,48169.0,0.026]
[1633125136184,0.31134,48175.0,48168.0,0.09369945]
[1633125136185,0.30634,48175.0,48168.0,0.09369945]
[1633125136382,0.311331,48179.0,48168.0,0.09369945]
[1633125136585,0.311331,48179.0,48170.0,0.01905011]
[1633125136783,0.02,48175.0,48170.0,0.01905011]
[1633125137781,0.02,48175.0,48171.0,0.215119]
[1633125138182,0.06015135,48182.0,48172.0,0.08105558]
[1633125138385,0.06015135,48182.0,48173.0,0.20998049]
[1633125138586,0.13963484,48183.0,48173.0,0.20902015]
[1633125138785,0.032,48182.0,48177.0,0.00125655]
[1633125138984,0.215119,48181.0,48177.0,0.00125655]
[1633125139390,0.215119,48181.0,48173.0,0.39579414]
[1633125139583,0.032,48182.0,48173.0,0.18677399]
[1633125139788,0.032,48182.0,48173.0,0.3971392]
[1633125140184,0.13963484,48183.0,48173.0,0.3971392]
[1633125140787,0.17463484,48183.0,48173.0,0.003]
[1633125140986,0.27649891,48182.0,48173.0,0.003]
[1633125141186,0.48178108,48182.0,48173.0,0.003]
[1633125141588,0.27532046,48182.0,48173.0,0.003]
[1633125141987,0.07878419,48181.0,48174.0,0.01902576]
[1633125142189,0.215119,48180.0,48174.0,0.01902576]
[1633125142394,0.44411374,48175.0,48174.0,0.01902576]
[1633125142788,0.44411374,48175.0,48174.0,0.02502576]
[1633125142986,0.23871818,48180.0,48174.0,0.02502576]
[1633125143186,0.215119,48179.0,48174.0,0.02502576]
[1633125143787,0.034,48180.0,48174.0,0.02625238]
[1633125143988,0.034,48180.0,48179.0,0.00122129]
[1633125144188,0.249119,48180.0,48179.0,0.00122129]
[1633125144387,0.215119,48180.0,48179.0,0.00122129]
[1633125144586,0.215119,48180.0,48174.0,0.01902576]
[1633125144789,0.01863521,48181.0,48174.0,0.02029681]
[1633125144990,0.036,48180.0,48179.0,0.003]
[1633125146187,0.036,48180.0,48178.0,0.19318559]
[1633125146390,0.01863521,48181.0,48175.0,0.21203754]
[1633125146587,0.01863521,48181.0,48175.0,0.21759101]
[1633125146990,0.029,48180.0,48178.0,0.024]
[1633125147592,0.029,48180.0,48179.0,0.01901912]
[1633125148194,0.09624319,48186.0,48179.0,0.01901912]
[1633125148392,0.215119,48185.0,48179.0,0.02027947]
[1633125148994,0.248119,48185.0,48179.0,0.02327947]
[1633125149195,0.248119,48185.0,48180.0,0.214366]
[1633125149794,0.033,48185.0,48180.0,0.214366]
[1633125150200,0.09624319,48186.0,48180.0,0.214366]
[1633125150465,0.09624319,48186.0,48179.0,0.02027947]
[1633125150596,0.207535,48183.0,48179.0,0.02027947]
[1633125150996,0.207535,48183.0,48179.0,0.01901912]
[1633125150997,0.215119,48182.0,48179.0,0.01901912]
[1633125152200,0.526421,48182.0,48179.0,0.01901912]
[1633125152598,0.215119,48182.0,48179.0,0.01901912]
[1633125152802,0.09624319,48186.0,48179.0,0.01901912]
[1633125152998,0.029,48182.0,48179.0,0.009]
[1633125153199,0.01864627,48181.0,48179.0,0.009]
[1633125153599,0.01864627,48181.0,48179.0,0.21813078]
[1633125153801,0.01864627,48181.0,48179.0,0.009]
[1633125154200,0.01864627,48181.0,48179.0,0.20999862]
[1633125154401,0.01864627,48181.0,48175.0,0.0005301]
[1633125154601,0.01864627,48181.0,48176.0,0.215114]
[1633125154800,0.01864627,48181.0,48177.0,0.21421875]
[1633125155001,0.04264627,48181.0,48177.0,0.21474885]
[1633125155203,0.04264627,48181.0,48177.0,0.21421875]
[1633125155800,0.35393727,48181.0,48177.0,0.21421875]
[1633125156200,0.04264627,48181.0,48177.0,0.21421875]
[1633125156602,0.01864627,48181.0,48177.0,0.21421875]
[1633125156800,0.01864627,48181.0,48175.0,0.0005301]
[1633125157002,0.03064627,48181.0,48180.0,0.00127828]
[1633125157202,0.03064627,48181.0,48180.0,0.21637428]
[1633125158201,0.01864627,48181.0,48180.0,0.43301058]
[1633125158608,0.01864627,48181.0,48180.0,0.21637428]
[1633125159000,0.03664627,48181.0,48180.0,0.24737428]
[1633125159204,0.06,48191.0,48181.0,0.07683971]
[1633125159403,0.06,48191.0,48190.0,0.00125088]
[1633125159605,0.14523814,48197.0,48190.0,0.42692343]
[1633125159804,0.06006739,48205.0,48196.0,0.0012964]
[1633125160003,0.2674811,48210.0,48196.0,0.0012964]
[1633125160205,0.2674811,48210.0,48197.0,0.00029303]
[1633125160206,0.207459,48210.0,48197.0,0.00029303]
[1633125160405,0.207459,48210.0,48201.0,0.00126495]
[1633125160611,0.207459,48210.0,48208.0,0.08036088]
[1633125160803,0.207459,48210.0,48209.0,0.11963872]
[1633125161004,0.241459,48210.0,48209.0,0.11963872]
[1633125161205,0.034,48210.0,48207.0,0.00029306]
[1633125161403,0.034,48210.0,48208.0,0.214957]
[1633125161603,0.034,48210.0,48209.0,0.25839498]
[1633125161804,0.034,48210.0,48209.0,0.25810192]
[1633125162002,0.03415409,48210.0,48209.0,0.00029306]
[1633125162204,0.03415409,48210.0,48209.0,0.214939]
[1633125162403,0.00015409,48210.0,48209.0,0.214939]
[1633125162602,0.00015409,48210.0,48209.0,0.45813121]
[1633125163004,0.00015409,48210.0,48209.0,0.49413121]
[1633125163407,0.08893873,48223.0,48215.0,0.09687132]
[1633125163605,0.08893873,48223.0,48216.0,0.25050869]
[1633125163804,7.111e-05,48216.0,48211.0,0.26593815]
[1633125164007,7.111e-05,48216.0,48212.0,0.214919]
[1633125164209,7.111e-05,48216.0,48213.0,0.00029306]
[1633125164408,7.111e-05,48216.0,48214.0,0.214913]
[1633125164607,7.111e-05,48216.0,48215.0,0.17321713]
[1633125164807,7.111e-05,48216.0,48215.0,0.38841719]
[1633125165472,7.111e-05,48216.0,48215.0,0.45928264]
[1633125165814,7.111e-05,48216.0,48215.0,1.56328264]
[1633125166608,7.111e-05,48216.0,48215.0,1.39006551]
[1633125167011,7.111e-05,48216.0,48215.0,0.32406551]
[1633125167209,7.111e-05,48216.0,48215.0,1.42806551]
[1633125168010,7.111e-05,48216.0,48215.0,0.32406551]
[1633125168211,7.111e-05,48216.0,48215.0,0.28606551]
[1633125168479,7.111e-05,48216.0,48215.0,1.39006551]
[1633125169013,7.111e-05,48216.0,48215.0,0.32277245]
[1633125169812,7.111e-05,48216.0,48215.0,0.251907]
[1633125171017,7.111e-05,48216.0,48215.0,0.289907]
[1633125171614,7.111e-05,48216.0,48215.0,0.214907]
[1633125172215,7.111e-05,48216.0,48215.0,0.15475669]
[1633125173014,7.111e-05,48216.0,48215.0,0.19375669]
[1633125173418,7.111e-05,48216.0,48215.0,0.22193752]
[1633125173624,0.08257361,48220.0,48215.0,0.06718083]
[1633125173816,0.3111,48219.0,48215.0,0.06718083]
[1633125174481,0.08257361,48220.0,48215.0,0.06718083]
[1633125174615,0.08257361,48220.0,48215.0,0.02818083]
[1633125175015,0.08257361,48220.0,48215.0,0.06018083]
[1633125175219,0.28997361,48220.0,48215.0,0.06018083]
[1633125176224,0.2074,48220.0,48215.0,0.06018083]
[1633125176419,0.0002,48226.0,48215.0,0.06018083]
[1633125176818,0.00043704,48226.0,48215.0,0.02818083]
[1633125177018,0.02843704,48226.0,48215.0,0.05518083]
[1633125177483,0.08426093,48225.0,48215.0,0.05518083]
[1633125177621,0.39531893,48225.0,48215.0,0.05518083]
[1633125178024,0.39531893,48225.0,48218.0,0.09942277]
[1633125178221,0.215075,48224.0,48215.0,0.02818083]